[Event "Titled Tuesday Blitz May 31 Late 2022"]
[White "Sadhwani, Raunak"]
[Black "Grischuk, Alexander"]
[WhiteFideId "35093487"]
[BlackFideId "4126025"]
[WhiteElo "2616"]
[BlackElo "2762"]
[Result "1-0"]
[Round "07"]
[TimeControl "180+1"]
[Date "2022.05.31"]
[WhiteClock "0:00:13"]
[BlackClock "0:00:01"]

1. e4 {[%clk 0:03:00]}  e6 {[%clk 0:02:59]} 2. d4 {[%clk 0:03:00]}  d5 {[%clk 0:03:00]} 3. e5 {[%clk 0:03:01]}  c5 {[%clk 0:03:00]} 4. c3 {[%clk 0:03:02]}  Nc6 {[%clk 0:03:00]} 5. Nf3 {[%clk 0:03:02]}  Bd7 {[%clk 0:03:01]} 6. a3 {[%clk 0:03:03]}  c4 {[%clk 0:03:01]} 7. Nbd2 {[%clk 0:03:00]}  Na5 {[%clk 0:03:01]} 8. h4 {[%clk 0:02:58]}  Ne7 {[%clk 0:02:59]} 9. h5 {[%clk 0:02:59]}  h6 {[%clk 0:02:59]} 10. Rb1 {[%clk 0:02:58]}  Qc7 {[%clk 0:02:53]} 11. Rh3 {[%clk 0:02:58]}  Nc8 {[%clk 0:02:53]} 12. b4 {[%clk 0:02:52]}  cxb3 {[%clk 0:02:53]} 13. Nxb3 {[%clk 0:02:53]}  Ba4 {[%clk 0:02:44]} 14. Nfd2 {[%clk 0:02:53]}  Nb6 {[%clk 0:02:39]} 15. Qc2 {[%clk 0:02:38]}  O-O-O {[%clk 0:02:35]} 16. Qb2 {[%clk 0:02:34]}  Nxb3 {[%clk 0:02:34]} 17. Nxb3 {[%clk 0:02:35]}  Kb8 {[%clk 0:02:27]} 18. Na5 {[%clk 0:02:33]}  Ka8 {[%clk 0:02:25]} 19. Bd2 {[%clk 0:02:31]}  f6 {[%clk 0:02:20]} 20. Bf4 {[%clk 0:02:15]}  fxe5 {[%clk 0:02:15]} 21. Bxe5 {[%clk 0:02:16]}  Bd6 {[%clk 0:02:16]} 22. Re3 {[%clk 0:02:15]}  Rhf8 {[%clk 0:02:11]} 23. Bxd6 {[%clk 0:02:07]}  Qxd6 {[%clk 0:02:07]} 24. Qb4 {[%clk 0:02:07]}  Qf4 {[%clk 0:01:06]} 25. Rb2 {[%clk 0:02:07]}  Rf7 {[%clk 0:01:07]} 26. Nb3 {[%clk 0:01:29]}  Rdf8 {[%clk 0:01:02]} 27. Bd3 {[%clk 0:01:01]}  Qh4 {[%clk 0:00:57]} 28. Rh3 {[%clk 0:00:48]}  Qg4 {[%clk 0:00:57]} 29. Rg3 {[%clk 0:00:43]}  Qxh5 {[%clk 0:00:45]} 30. Rh3 {[%clk 0:00:42]}  Qg4 {[%clk 0:00:43]} 31. Rg3 {[%clk 0:00:42]}  Qf4 {[%clk 0:00:43]} 32. Rf3 {[%clk 0:00:38]}  Qb8 {[%clk 0:00:34]} 33. Rxf7 {[%clk 0:00:39]}  Rxf7 {[%clk 0:00:35]} 34. Nc5 {[%clk 0:00:39]}  Bc6 {[%clk 0:00:33]} 35. Re2 {[%clk 0:00:25]}  Nd7 {[%clk 0:00:19]} 36. Nxe6 {[%clk 0:00:24]}  a6 {[%clk 0:00:19]} 37. g3 {[%clk 0:00:20]}  g5 {[%clk 0:00:17]} 38. Re3 {[%clk 0:00:20]}  Ka7 {[%clk 0:00:13]} 39. a4 {[%clk 0:00:19]}  Nf6 {[%clk 0:00:04]} 40. a5 {[%clk 0:00:18]}  Ne4 {[%clk 0:00:04]} 41. Bxe4 {[%clk 0:00:13]}  dxe4 {[%clk 0:00:04]} 42. d5 {[%clk 0:00:13]}  Be8 {[%clk 0:00:02]} 43. Qxe4 {[%clk 0:00:13]}  Ka8 {[%clk 0:00:02]} 44. Qd4 {[%clk 0:00:13]}  Bd7 {[%clk 0:00:02]} 45. c4 {[%clk 0:00:11]}  Bxe6 {[%clk 0:00:02]} 46. dxe6 {[%clk 0:00:12]}  Re7 {[%clk 0:00:02]} 47. Qd5 {[%clk 0:00:10]}  Qc7 {[%clk 0:00:02]} 48. Kf1 {[%clk 0:00:09]}  Ka7 {[%clk 0:00:02]} 49. Kg2 {[%clk 0:00:10]}  Ka8 {[%clk 0:00:02]} 50. Kh2 {[%clk 0:00:10]}  Ka7 {[%clk 0:00:01]} 51. Kg1 {[%clk 0:00:10]}  Ka8 {[%clk 0:00:02]} 52. c5 {[%clk 0:00:11]}  Qxa5 {[%clk 0:00:01]} 53. Qd6 {[%clk 0:00:11]}  Qa1+ {[%clk 0:00:02]} 54. Kg2 {[%clk 0:00:11]}  Qg7 {[%clk 0:00:01]} 55. c6 {[%clk 0:00:11]}  bxc6 {[%clk 0:00:02]} 56. Qxc6+ {[%clk 0:00:12]}  Ka7 {[%clk 0:00:03]} 57. Qc5+ {[%clk 0:00:12]}  Ka8 {[%clk 0:00:03]} 58. Qd5+ {[%clk 0:00:13]}  Ka7 {[%clk 0:00:03]} 59. Rb3 {[%clk 0:00:13]}  Qf6 {[%clk 0:00:01]} 60. Qc5+ {[%clk 0:00:13]} 1-0


[Site "https://www.chess.com"]

[Event "Titled Tuesday Blitz May 31 Late 2022"]
[White "Sarana, Alexey"]
[Black "Goncalves, Ivan Mesquita V"]
[WhiteFideId "24133795"]
[BlackFideId "2114224"]
[WhiteElo "2666"]
[BlackElo "2299"]
[Result "1-0"]
[Round "07"]
[TimeControl "180+1"]
[Date "2022.05.31"]
[WhiteClock "0:02:19"]
[BlackClock "0:00:59"]

1. d4 {[%clk 0:03:00]}  Nf6 {[%clk 0:03:00]} 2. c4 {[%clk 0:03:01]}  e6 {[%clk 0:03:00]} 3. Nc3 {[%clk 0:03:01]}  Bb4 {[%clk 0:03:01]} 4. Nf3 {[%clk 0:03:01]}  O-O {[%clk 0:02:59]} 5. g3 {[%clk 0:03:02]}  d6 {[%clk 0:02:59]} 6. Bg2 {[%clk 0:03:02]}  Nbd7 {[%clk 0:02:59]} 7. Bd2 {[%clk 0:03:01]}  Qe7 {[%clk 0:02:57]} 8. a3 {[%clk 0:03:02]}  Bxc3 {[%clk 0:02:53]} 9. Bxc3 {[%clk 0:03:03]}  c6 {[%clk 0:02:49]} 10. O-O {[%clk 0:03:01]}  Re8 {[%clk 0:02:47]} 11. Qc2 {[%clk 0:03:00]}  e5 {[%clk 0:02:45]} 12. e4 {[%clk 0:03:00]}  a5 {[%clk 0:02:24]} 13. Rfe1 {[%clk 0:02:59]}  a4 {[%clk 0:02:23]} 14. Rad1 {[%clk 0:02:54]}  exd4 {[%clk 0:02:21]} 15. Nxd4 {[%clk 0:02:54]}  Nc5 {[%clk 0:02:21]} 16. h3 {[%clk 0:02:54]}  h6 {[%clk 0:02:19]} 17. Kh2 {[%clk 0:02:33]}  Be6 {[%clk 0:01:56]} 18. Bb4 {[%clk 0:02:28]}  Qc7 {[%clk 0:01:46]} 19. Nxe6 {[%clk 0:02:23]}  Rxe6 {[%clk 0:01:34]} 20. e5 {[%clk 0:02:24]}  Nfd7 {[%clk 0:01:30]} 21. exd6 {[%clk 0:02:24]}  Rxd6 {[%clk 0:01:31]} 22. Re7 {[%clk 0:02:24]}  Rxd1 {[%clk 0:01:14]} 23. Qxd1 {[%clk 0:02:25]}  Qd8 {[%clk 0:00:59]} 24. Qd6 {[%clk 0:02:22]}  b6 {[%clk 0:00:58]} 25. Bxc6 {[%clk 0:02:20]}  Ra7 {[%clk 0:00:59]} 26. Bxc5 {[%clk 0:02:19]} 1-0


[Site "https://www.chess.com"]

[Event "Titled Tuesday Blitz May 31 Late 2022"]
[White "Shirov, Alexei"]
[Black "Bortnyk, Olexandr"]
[WhiteFideId "2209390"]
[BlackFideId "14120828"]
[WhiteElo "2678"]
[BlackElo "2723"]
[Result "0-1"]
[Round "07"]
[TimeControl "180+1"]
[Date "2022.05.31"]
[WhiteClock "0:00:13"]
[BlackClock "0:00:13"]

1. e4 {[%clk 0:03:00]}  Nf6 {[%clk 0:02:59]} 2. e5 {[%clk 0:02:59]}  Nd5 {[%clk 0:02:59]} 3. d4 {[%clk 0:02:59]}  d6 {[%clk 0:02:59]} 4. c4 {[%clk 0:02:58]}  Nb6 {[%clk 0:02:59]} 5. exd6 {[%clk 0:02:58]}  exd6 {[%clk 0:03:00]} 6. Nc3 {[%clk 0:02:55]}  Be7 {[%clk 0:03:00]} 7. Bd3 {[%clk 0:02:52]}  c6 {[%clk 0:02:59]} 8. Nge2 {[%clk 0:02:50]}  Na6 {[%clk 0:03:00]} 9. O-O {[%clk 0:02:47]}  O-O {[%clk 0:02:58]} 10. b3 {[%clk 0:02:40]}  d5 {[%clk 0:02:57]} 11. cxd5 {[%clk 0:02:12]}  Nxd5 {[%clk 0:02:56]} 12. Nxd5 {[%clk 0:02:10]}  Qxd5 {[%clk 0:02:44]} 13. Nf4 {[%clk 0:02:08]}  Qd6 {[%clk 0:02:36]} 14. Bxa6 {[%clk 0:02:07]}  bxa6 {[%clk 0:02:35]} 15. Be3 {[%clk 0:02:07]}  Bf5 {[%clk 0:02:04]} 16. Rc1 {[%clk 0:02:06]}  Rac8 {[%clk 0:02:01]} 17. Rc5 {[%clk 0:01:58]}  Qd7 {[%clk 0:01:59]} 18. Ra5 {[%clk 0:01:54]}  Rfd8 {[%clk 0:01:37]} 19. Qf3 {[%clk 0:01:53]}  Bb4 {[%clk 0:01:31]} 20. Rxa6 {[%clk 0:01:49]}  Qb7 {[%clk 0:01:18]} 21. Ra4 {[%clk 0:01:44]}  a5 {[%clk 0:01:15]} 22. Rc1 {[%clk 0:01:40]}  Qb5 {[%clk 0:01:06]} 23. h3 {[%clk 0:01:39]}  h6 {[%clk 0:00:52]} 24. Qe2 {[%clk 0:01:36]}  Qxe2 {[%clk 0:00:48]} 25. Nxe2 {[%clk 0:01:35]}  Bd3 {[%clk 0:00:49]} 26. Nc3 {[%clk 0:01:31]}  Bb5 {[%clk 0:00:48]} 27. Rxb4 {[%clk 0:01:11]}  axb4 {[%clk 0:00:49]} 28. Ne4 {[%clk 0:01:11]}  Ra8 {[%clk 0:00:48]} 29. Ra1 {[%clk 0:01:11]}  Ra5 {[%clk 0:00:39]} 30. Nc5 {[%clk 0:00:39]}  Rda8 {[%clk 0:00:39]} 31. Bd2 {[%clk 0:00:38]}  Rxa2 {[%clk 0:00:38]} 32. Rxa2 {[%clk 0:00:38]}  Rxa2 {[%clk 0:00:39]} 33. Bxb4 {[%clk 0:00:38]}  f5 {[%clk 0:00:34]} 34. Bc3 {[%clk 0:00:33]}  Rc2 {[%clk 0:00:33]} 35. Ba5 {[%clk 0:00:32]}  Kf7 {[%clk 0:00:32]} 36. Bc7 {[%clk 0:00:31]}  g5 {[%clk 0:00:32]} 37. f3 {[%clk 0:00:29]}  Rc1+ {[%clk 0:00:24]} 38. Kh2 {[%clk 0:00:28]}  Bf1 {[%clk 0:00:22]} 39. Kg1 {[%clk 0:00:28]}  Rb1 {[%clk 0:00:20]} 40. h4 {[%clk 0:00:21]}  Bc4+ {[%clk 0:00:19]} 41. Kh2 {[%clk 0:00:20]}  Bxb3 {[%clk 0:00:20]} 42. hxg5 {[%clk 0:00:20]}  hxg5 {[%clk 0:00:20]} 43. Nd3 {[%clk 0:00:18]}  Bd5 {[%clk 0:00:19]} 44. Ne5+ {[%clk 0:00:17]}  Ke7 {[%clk 0:00:18]} 45. Ng6+ {[%clk 0:00:15]}  Kd7 {[%clk 0:00:17]} 46. Be5 {[%clk 0:00:15]}  Ke6 {[%clk 0:00:14]} 47. Bc7 {[%clk 0:00:14]}  Rb2 {[%clk 0:00:14]} 48. Bd8 {[%clk 0:00:13]}  Bxf3 {[%clk 0:00:13]} 0-1


[Site "https://www.chess.com"]

[Event "Titled Tuesday Blitz May 31 Late 2022"]
[White "Souleidis, Georgios"]
[Black "Bas Mas, Jose Joaquin"]
[WhiteFideId "4206827"]
[BlackFideId "22219064"]
[WhiteElo "2401"]
[BlackElo "2233"]
[Result "0-1"]
[Round "07"]
[TimeControl "180+1"]
[Date "2022.06.01"]
[WhiteClock "0:00:05"]
[BlackClock "0:00:12"]

1. e4 {[%clk 0:02:59]}  c5 {[%clk 0:02:59]} 2. Be2 {[%clk 0:02:58]}  g6 {[%clk 0:02:58]} 3. d3 {[%clk 0:02:59]}  Bg7 {[%clk 0:02:58]} 4. f4 {[%clk 0:02:59]}  Nc6 {[%clk 0:02:58]} 5. Nf3 {[%clk 0:02:59]}  d6 {[%clk 0:02:51]} 6. O-O {[%clk 0:02:59]}  Nf6 {[%clk 0:02:47]} 7. c3 {[%clk 0:02:59]}  O-O {[%clk 0:02:37]} 8. Kh1 {[%clk 0:02:59]}  b5 {[%clk 0:02:31]} 9. a3 {[%clk 0:02:58]}  a5 {[%clk 0:02:30]} 10. Be3 {[%clk 0:02:58]}  Rb8 {[%clk 0:02:27]} 11. Nbd2 {[%clk 0:02:56]}  e6 {[%clk 0:02:26]} 12. d4 {[%clk 0:02:55]}  cxd4 {[%clk 0:02:13]} 13. cxd4 {[%clk 0:02:56]}  b4 {[%clk 0:02:13]} 14. Rc1 {[%clk 0:02:45]}  Bd7 {[%clk 0:02:06]} 15. a4 {[%clk 0:02:41]}  Ne7 {[%clk 0:02:03]} 16. Bd3 {[%clk 0:02:28]}  d5 {[%clk 0:01:40]} 17. e5 {[%clk 0:02:28]}  Ng4 {[%clk 0:01:40]} 18. Bg1 {[%clk 0:02:28]}  Nf5 {[%clk 0:01:40]} 19. Bxf5 {[%clk 0:02:09]}  gxf5 {[%clk 0:01:36]} 20. h3 {[%clk 0:02:09]}  Nh6 {[%clk 0:01:32]} 21. Ne1 {[%clk 0:02:09]}  f6 {[%clk 0:01:28]} 22. Nd3 {[%clk 0:02:04]}  Nf7 {[%clk 0:01:28]} 23. Nc5 {[%clk 0:02:03]}  Ra8 {[%clk 0:01:06]} 24. Ndb3 {[%clk 0:02:01]}  Bh6 {[%clk 0:00:54]} 25. Nxd7 {[%clk 0:01:23]}  Qxd7 {[%clk 0:00:53]} 26. Nc5 {[%clk 0:01:23]}  Qe7 {[%clk 0:00:48]} 27. Qe2 {[%clk 0:01:12]}  fxe5 {[%clk 0:00:43]} 28. dxe5 {[%clk 0:01:12]}  Rfc8 {[%clk 0:00:40]} 29. Bd4 {[%clk 0:01:07]}  Nd8 {[%clk 0:00:29]} 30. Qh5 {[%clk 0:01:07]}  Bf8 {[%clk 0:00:26]} 31. g4 {[%clk 0:00:41]}  Qf7 {[%clk 0:00:26]} 32. Qxf7+ {[%clk 0:00:22]}  Kxf7 {[%clk 0:00:27]} 33. b3 {[%clk 0:00:15]}  fxg4 {[%clk 0:00:17]} 34. hxg4 {[%clk 0:00:15]}  Bxc5 {[%clk 0:00:17]} 35. Bxc5 {[%clk 0:00:14]}  Rc6 {[%clk 0:00:18]} 36. f5 {[%clk 0:00:12]}  Rac8 {[%clk 0:00:15]} 37. Be3 {[%clk 0:00:12]}  Rxc1 {[%clk 0:00:12]} 38. Rxc1 {[%clk 0:00:13]}  Rxc1+ {[%clk 0:00:13]} 39. Bxc1 {[%clk 0:00:14]}  exf5 {[%clk 0:00:13]} 40. gxf5 {[%clk 0:00:14]}  Nc6 {[%clk 0:00:13]} 41. e6+ {[%clk 0:00:12]}  Kf6 {[%clk 0:00:13]} 42. Be3 {[%clk 0:00:02]}  Kxf5 {[%clk 0:00:12]} 43. e7 {[%clk 0:00:03]}  Nxe7 {[%clk 0:00:11]} 44. Bb6 {[%clk 0:00:04]}  Nc6 {[%clk 0:00:11]} 45. Kg2 {[%clk 0:00:04]}  Ke4 {[%clk 0:00:11]} 46. Kf2 {[%clk 0:00:05]}  Kd3 {[%clk 0:00:11]} 47. Kf3 {[%clk 0:00:05]}  Kc3 {[%clk 0:00:12]} 0-1


[Site "https://www.chess.com"]

[Event "Titled Tuesday Blitz May 31 Late 2022"]
[White "Swiercz, Dariusz"]
[Black "Preotu, Razvan"]
[WhiteFideId "1126881"]
[BlackFideId "2613280"]
[WhiteElo "2627"]
[BlackElo "2407"]
[Result "0-1"]
[Round "07"]
[TimeControl "180+1"]
[Date "2022.05.31"]
[WhiteClock "0:00:09"]
[BlackClock "0:00:04"]

1. d4 {[%clk 0:03:00]}  f5 {[%clk 0:03:00]} 2. g3 {[%clk 0:03:00]}  Nf6 {[%clk 0:03:00]} 3. Bg2 {[%clk 0:03:01]}  g6 {[%clk 0:03:01]} 4. Nd2 {[%clk 0:03:01]}  Bg7 {[%clk 0:03:01]} 5. e4 {[%clk 0:03:01]}  fxe4 {[%clk 0:03:01]} 6. Nxe4 {[%clk 0:03:02]}  d5 {[%clk 0:02:57]} 7. Nxf6+ {[%clk 0:03:00]}  Bxf6 {[%clk 0:02:56]} 8. Nf3 {[%clk 0:02:59]}  O-O {[%clk 0:02:52]} 9. O-O {[%clk 0:02:59]}  c6 {[%clk 0:02:52]} 10. Re1 {[%clk 0:02:58]}  Bg4 {[%clk 0:02:51]} 11. c3 {[%clk 0:02:46]}  Nd7 {[%clk 0:02:50]} 12. Bf4 {[%clk 0:02:35]}  g5 {[%clk 0:02:49]} 13. Be3 {[%clk 0:02:23]}  e5 {[%clk 0:02:47]} 14. h3 {[%clk 0:02:23]}  Bxf3 {[%clk 0:02:44]} 15. Bxf3 {[%clk 0:02:22]}  e4 {[%clk 0:02:28]} 16. Bg4 {[%clk 0:02:22]}  h6 {[%clk 0:02:20]} 17. c4 {[%clk 0:02:17]}  dxc4 {[%clk 0:02:04]} 18. Qc2 {[%clk 0:02:06]}  Re8 {[%clk 0:01:59]} 19. Qxc4+ {[%clk 0:01:55]}  Kg7 {[%clk 0:02:00]} 20. Rad1 {[%clk 0:01:22]}  Nb6 {[%clk 0:02:00]} 21. Qe2 {[%clk 0:01:22]}  Nd5 {[%clk 0:01:58]} 22. Bf5 {[%clk 0:01:15]}  Qe7 {[%clk 0:01:55]} 23. Bc1 {[%clk 0:01:10]}  Nb4 {[%clk 0:01:10]} 24. Bxe4 {[%clk 0:01:00]}  Qf7 {[%clk 0:00:59]} 25. a3 {[%clk 0:00:55]}  Nd5 {[%clk 0:01:00]} 26. Qf3 {[%clk 0:00:53]}  Rad8 {[%clk 0:00:50]} 27. Qf5 {[%clk 0:00:48]}  Kg8 {[%clk 0:00:47]} 28. Kg2 {[%clk 0:00:30]}  Ne7 {[%clk 0:00:47]} 29. Qg4 {[%clk 0:00:28]}  Rxd4 {[%clk 0:00:29]} 30. Rxd4 {[%clk 0:00:28]}  Bxd4 {[%clk 0:00:30]} 31. Be3 {[%clk 0:00:21]}  Bxb2 {[%clk 0:00:26]} 32. Rb1 {[%clk 0:00:19]}  Nd5 {[%clk 0:00:18]} 33. Bxa7 {[%clk 0:00:05]}  Nf6 {[%clk 0:00:16]} 34. Qf5 {[%clk 0:00:05]}  Nxe4 {[%clk 0:00:15]} 35. Qxf7+ {[%clk 0:00:05]}  Kxf7 {[%clk 0:00:16]} 36. Rxb2 {[%clk 0:00:05]}  b5 {[%clk 0:00:16]} 37. Be3 {[%clk 0:00:04]}  Nd6 {[%clk 0:00:16]} 38. Rb4 {[%clk 0:00:03]}  Nc4 {[%clk 0:00:16]} 39. a4 {[%clk 0:00:03]}  Rb8 {[%clk 0:00:10]} 40. a5 {[%clk 0:00:03]}  Ra8 {[%clk 0:00:10]} 41. Bb6 {[%clk 0:00:03]}  Ke6 {[%clk 0:00:10]} 42. Bc7 {[%clk 0:00:03]}  Kd7 {[%clk 0:00:10]} 43. Bb6 {[%clk 0:00:03]}  Nxb6 {[%clk 0:00:10]} 44. axb6 {[%clk 0:00:04]}  Rb8 {[%clk 0:00:10]} 45. h4 {[%clk 0:00:05]}  Rxb6 {[%clk 0:00:09]} 46. hxg5 {[%clk 0:00:05]}  hxg5 {[%clk 0:00:10]} 47. Kf3 {[%clk 0:00:05]}  c5 {[%clk 0:00:10]} 48. Rb1 {[%clk 0:00:05]}  b4 {[%clk 0:00:10]} 49. Ke4 {[%clk 0:00:06]}  Rd6 {[%clk 0:00:10]} 50. f4 {[%clk 0:00:05]}  gxf4 {[%clk 0:00:09]} 51. gxf4 {[%clk 0:00:06]}  Kc6 {[%clk 0:00:09]} 52. f5 {[%clk 0:00:07]}  Kb5 {[%clk 0:00:10]} 53. Ke5 {[%clk 0:00:07]}  Rd8 {[%clk 0:00:09]} 54. f6 {[%clk 0:00:08]}  c4 {[%clk 0:00:09]} 55. f7 {[%clk 0:00:06]}  c3 {[%clk 0:00:09]} 56. Rd1 {[%clk 0:00:07]}  Rf8 {[%clk 0:00:09]} 57. Rd7 {[%clk 0:00:06]}  c2 {[%clk 0:00:08]} 58. Rb7+ {[%clk 0:00:06]}  Kc4 {[%clk 0:00:09]} 59. Rc7+ {[%clk 0:00:07]}  Kd3 {[%clk 0:00:09]} 60. Ke6 {[%clk 0:00:06]}  b3 {[%clk 0:00:09]} 61. Rd7+ {[%clk 0:00:07]}  Ke3 {[%clk 0:00:09]} 62. Rc7 {[%clk 0:00:07]}  b2 {[%clk 0:00:09]} 63. Rxc2 {[%clk 0:00:07]}  b1=Q {[%clk 0:00:09]} 64. Rc7 {[%clk 0:00:07]}  Qb3+ {[%clk 0:00:08]} 65. Kf6 {[%clk 0:00:08]}  Ke4 {[%clk 0:00:08]} 66. Kg7 {[%clk 0:00:08]}  Rb8 {[%clk 0:00:05]} 67. Re7+ {[%clk 0:00:07]}  Kf5 {[%clk 0:00:05]} 68. Re8 {[%clk 0:00:07]}  Rb7 {[%clk 0:00:04]} 69. Kh8 {[%clk 0:00:08]}  Rxf7 {[%clk 0:00:02]} 70. Re5+ {[%clk 0:00:08]}  Kxe5 {[%clk 0:00:02]} 71. Kg8 {[%clk 0:00:08]}  Rd7+ {[%clk 0:00:03]} 72. Kh8 {[%clk 0:00:09]}  Qb8# {[%clk 0:00:04]} 0-1


[Site "https://www.chess.com"]

[Event "Titled Tuesday Blitz May 31 Late 2022"]
[White "Tristan, Leonardo"]
[Black "Reprintsev, Alexander"]
[WhiteFideId "113816"]
[BlackFideId "14100541"]
[WhiteElo "2404"]
[BlackElo "2108"]
[Result "1-0"]
[Round "07"]
[TimeControl "180+1"]
[Date "2022.06.01"]
[WhiteClock "0:00:02"]
[BlackClock "0:00:01"]

1. d4 {[%clk 0:03:00]}  d5 {[%clk 0:02:56]} 2. Nf3 {[%clk 0:03:01]}  Nc6 {[%clk 0:02:55]} 3. Bf4 {[%clk 0:03:01]}  Bg4 {[%clk 0:02:54]} 4. e3 {[%clk 0:03:01]}  e6 {[%clk 0:02:54]} 5. c4 {[%clk 0:03:01]}  Nf6 {[%clk 0:02:45]} 6. Nc3 {[%clk 0:03:01]}  Bb4 {[%clk 0:02:43]} 7. Bg5 {[%clk 0:02:57]}  Bxf3 {[%clk 0:02:31]} 8. Qxf3 {[%clk 0:02:54]}  dxc4 {[%clk 0:02:10]} 9. Bxc4 {[%clk 0:02:51]}  h6 {[%clk 0:02:07]} 10. Bh4 {[%clk 0:02:49]}  g5 {[%clk 0:02:05]} 11. Bg3 {[%clk 0:02:49]}  Nd5 {[%clk 0:02:03]} 12. Bxd5 {[%clk 0:02:43]}  exd5 {[%clk 0:01:56]} 13. O-O {[%clk 0:02:43]}  Bxc3 {[%clk 0:01:51]} 14. bxc3 {[%clk 0:02:44]}  Qd7 {[%clk 0:01:50]} 15. Qf6 {[%clk 0:02:38]}  Rg8 {[%clk 0:01:49]} 16. Rab1 {[%clk 0:02:28]}  b6 {[%clk 0:01:47]} 17. Qxh6 {[%clk 0:02:00]}  O-O-O {[%clk 0:01:44]} 18. Rfc1 {[%clk 0:01:37]}  Rg6 {[%clk 0:01:38]} 19. Qh5 {[%clk 0:01:38]}  Qe6 {[%clk 0:01:28]} 20. Qe2 {[%clk 0:01:29]}  f5 {[%clk 0:01:26]} 21. Qa6+ {[%clk 0:01:29]}  Kb8 {[%clk 0:01:25]} 22. Rxb6+ {[%clk 0:01:01]}  axb6 {[%clk 0:01:24]} 23. Qxb6+ {[%clk 0:01:01]}  Ka8 {[%clk 0:01:24]} 24. Bxc7 {[%clk 0:01:02]}  Rb8 {[%clk 0:01:08]} 25. Bxb8 {[%clk 0:00:47]}  Nxb8 {[%clk 0:01:08]} 26. Qc5 {[%clk 0:00:48]}  Qc6 {[%clk 0:01:00]} 27. Qf8 {[%clk 0:00:46]}  Rf6 {[%clk 0:00:57]} 28. Qg8 {[%clk 0:00:45]}  Rg6 {[%clk 0:00:56]} 29. Qf7 {[%clk 0:00:39]}  Qe6 {[%clk 0:00:51]} 30. Qf8 {[%clk 0:00:35]}  Rg8 {[%clk 0:00:48]} 31. Qa3+ {[%clk 0:00:31]}  Qa6 {[%clk 0:00:47]} 32. Qc5 {[%clk 0:00:31]}  Qc6 {[%clk 0:00:44]} 33. Qb4 {[%clk 0:00:31]}  Rg7 {[%clk 0:00:42]} 34. c4 {[%clk 0:00:30]}  Rb7 {[%clk 0:00:40]} 35. Qa3+ {[%clk 0:00:30]}  Ra7 {[%clk 0:00:39]} 36. Qb3 {[%clk 0:00:27]}  dxc4 {[%clk 0:00:29]} 37. Rxc4 {[%clk 0:00:26]}  Qb7 {[%clk 0:00:28]} 38. Qc2 {[%clk 0:00:24]}  f4 {[%clk 0:00:24]} 39. e4 {[%clk 0:00:20]}  g4 {[%clk 0:00:23]} 40. a4 {[%clk 0:00:13]}  f3 {[%clk 0:00:23]} 41. h3 {[%clk 0:00:12]}  fxg2 {[%clk 0:00:22]} 42. hxg4 {[%clk 0:00:11]}  Qb6 {[%clk 0:00:14]} 43. Kxg2 {[%clk 0:00:11]}  Rg7 {[%clk 0:00:13]} 44. f3 {[%clk 0:00:10]}  Rh7 {[%clk 0:00:13]} 45. e5 {[%clk 0:00:10]}  Qh6 {[%clk 0:00:12]} 46. Kf2 {[%clk 0:00:05]}  Qh2+ {[%clk 0:00:11]} 47. Ke3 {[%clk 0:00:06]}  Qg1+ {[%clk 0:00:11]} 48. Ke4 {[%clk 0:00:06]}  Qe1+ {[%clk 0:00:11]} 49. Kd5 {[%clk 0:00:05]}  Rd7+ {[%clk 0:00:10]} 50. Ke6 {[%clk 0:00:06]}  Rb7 {[%clk 0:00:09]} 51. Qe4 {[%clk 0:00:04]}  Qa5 {[%clk 0:00:09]} 52. d5 {[%clk 0:00:03]}  Nd7 {[%clk 0:00:07]} 53. d6 {[%clk 0:00:02]}  Ka7 {[%clk 0:00:06]} 54. Qd4+ {[%clk 0:00:03]}  Nb6 {[%clk 0:00:06]} 55. Rc6 {[%clk 0:00:02]}  Qe1 {[%clk 0:00:05]} 56. Rxb6 {[%clk 0:00:02]}  Rxb6 {[%clk 0:00:04]} 57. Ke7 {[%clk 0:00:02]}  Qg3 {[%clk 0:00:03]} 58. d7 {[%clk 0:00:02]}  Qxf3 {[%clk 0:00:01]} 59. d8=Q {[%clk 0:00:02]} 1-0


[Site "https://www.chess.com"]

[Event "Titled Tuesday Blitz May 31 Late 2022"]
[White "Urazayev, Arystanbek"]
[Black "Petrovic, Aleksa"]
[WhiteFideId "13709810"]
[BlackFideId "967629"]
[WhiteElo "2422"]
[BlackElo "2144"]
[Result "1-0"]
[Round "07"]
[TimeControl "180+1"]
[Date "2022.05.31"]
[WhiteClock "0:01:48"]
[BlackClock "0:00:05"]

1. d4 {[%clk 0:03:00]}  Nf6 {[%clk 0:02:59]} 2. c4 {[%clk 0:03:01]}  e6 {[%clk 0:02:59]} 3. Nc3 {[%clk 0:03:01]}  Bb4 {[%clk 0:02:59]} 4. Nf3 {[%clk 0:03:02]}  c5 {[%clk 0:02:57]} 5. g3 {[%clk 0:03:01]}  Nc6 {[%clk 0:02:57]} 6. Bg2 {[%clk 0:03:01]}  Ne4 {[%clk 0:02:57]} 7. Bd2 {[%clk 0:03:00]}  Nxd2 {[%clk 0:02:57]} 8. Qxd2 {[%clk 0:03:00]}  cxd4 {[%clk 0:02:56]} 9. Nxd4 {[%clk 0:03:00]}  O-O {[%clk 0:02:56]} 10. O-O {[%clk 0:02:59]}  Qc7 {[%clk 0:02:54]} 11. Nc2 {[%clk 0:02:54]}  Be7 {[%clk 0:02:52]} 12. Rfd1 {[%clk 0:02:51]}  d6 {[%clk 0:02:49]} 13. Nb5 {[%clk 0:02:51]}  Qb6 {[%clk 0:02:39]} 14. Nxd6 {[%clk 0:02:43]}  Qxb2 {[%clk 0:02:08]} 15. c5 {[%clk 0:02:42]}  Rd8 {[%clk 0:01:52]} 16. Ne3 {[%clk 0:02:38]}  Qe5 {[%clk 0:01:40]} 17. Rac1 {[%clk 0:02:38]}  Bxd6 {[%clk 0:01:19]} 18. cxd6 {[%clk 0:02:38]}  Bd7 {[%clk 0:01:16]} 19. Nc4 {[%clk 0:02:24]}  Qf6 {[%clk 0:01:09]} 20. Na5 {[%clk 0:02:17]}  Nxa5 {[%clk 0:01:02]} 21. Qxa5 {[%clk 0:02:18]}  Qb2 {[%clk 0:00:51]} 22. Bf3 {[%clk 0:01:53]}  Bc6 {[%clk 0:00:29]} 23. Bxc6 {[%clk 0:01:53]}  bxc6 {[%clk 0:00:29]} 24. e4 {[%clk 0:01:53]}  e5 {[%clk 0:00:18]} 25. Rxc6 {[%clk 0:01:50]}  Qe2 {[%clk 0:00:18]} 26. Qd5 {[%clk 0:01:50]}  Rd7 {[%clk 0:00:16]} 27. Rc7 {[%clk 0:01:47]}  Rxc7 {[%clk 0:00:05]} 28. dxc7 {[%clk 0:01:48]} 1-0


[Site "https://www.chess.com"]